[Event "45th FIDE Womens Olympiad 2024"]
[Site "Budapest"]
[Date "2024.09.14"]
[Round "4.29"]
[White "Chen, Chi"]
[Black "Swaminathan, Laia"]
[Result "1-0"]
[ECO "C52"]
[WhiteElo "1746"]
[BlackElo "1620"]
[PlyCount "131"]
[EventDate "2024.09.05"]
[EventType "team-tourn"]
[EventCountry "HUN"]
[WhiteTeam "Chinese Taipei"]
[BlackTeam "Cayman Islands"]
[WhiteTeamCountry "TPE"]
[BlackTeamCountry "CAY"]
[TimeControl "40/5400+30:1800+30"]

1. e4 e5 2. Nf3 Nc6 3. Bc4 Bc5 4. b4 Bxb4 5. c3 Ba5 6. d4 Qe7 7. O-O Bb6 8. Ng5 Nh6 9. Qh5 d6 10. h3 Bd7 11. Nf3 O-O-O 12. d5 Na5 13. Bd3 Ng8 14. Na3 Nf6 15. Qg5 c6 16. c4 Bc5 17. Qd2 b6 18. Bb2 Nb7 19. Nc2 Nh5 20. Nb4 Bxb4 21. Qxb4 Nf4 22. Rfd1 c5 23. Qd2 Qf6 24. Bf1 Qg6 25. Kh2 Qxe4 26. Re1 Qg6 27. Ng1 Na5 28. f3 Nh5 29. Qf2 f5 30. Bd3 Qg5 31. Bc1 f4 32. Ne2 Ng3 33. Nxg3 Qxg3+ 34. Qxg3 fxg3+ 35. Kxg3 Rdf8 36. Bd2 Nb7 37. a4 a5 38. Reb1 Kc7 39. Rb2 Rb8 40. Bc2 Nd8 41. Rab1 Nf7 42. h4 g6 43. Kf2 Bf5 44. g4 Bxc2 45. Rxc2 Rhe8 46. Re1 h5 47. g5 Kd7 48. Rb2 Kc7 49. Ke3 Re7 50. Reb1 Ree8 51. Bc3 Nxg5 52. hxg5 Rf8 53. Kf2 e4 54. Bf6 Rfe8 55. f4 e3+ 56. Kf3 e2 57. Rxe2 Rxe2 58. Kxe2 Re8+ 59. Kf3 Rb8 60. Re1 b5 61. axb5 a4 62. Re7+ Kb6 63. Rd7 Ka5 64. Bc3+ Kb6 65. Rxd6+ Kc7 66. Rxg6 1-0

[Event "45th FIDE Womens Olympiad 2024"]
[Site "Budapest"]
[Date "2024.09.14"]
[Round "4.30"]
[White "Vo, Thi Kim Phung"]
[Black "Mkrtchyan, Mariam"]
[Result "1/2-1/2"]
[ECO "D38"]
[WhiteElo "2320"]
[BlackElo "2328"]
[Annotator "ChessBase"]
[PlyCount "200"]
[EventDate "2024.09.05"]
[EventType "team-tourn"]
[EventCountry "HUN"]
[SourceTitle "playchess.com"]
[Source "ChessBase"]
[SourceQuality "1"]
[WhiteTeam "Vietnam"]
[BlackTeam "Armenia"]
[WhiteTeamCountry "VIE"]
[BlackTeamCountry "ARM"]
[TimeControl "40/5400+30:1800+30"]

1. d4 {[%emt 0:00:04]} d5 {[%emt 0:00:06]} 2. Nf3 {[%emt 0:01:04]} e6 {[%emt 0:00:35]} 3. c4 {[%emt 0:00:13]} Nf6 {[%emt 0:00:09]} 4. Nc3 {[%emt 0:00:10]} Bb4 {[%emt 0:00:27]} 5. Bg5 {[%emt 0:00:41]} O-O {[%emt 0:01:18]} 6. e3 {[%emt 0:02:06]} c5 {[%emt 0:00:35]} 7. cxd5 {[%emt 0:01:31]} exd5 {[%emt 0:00:04]} 8. dxc5 {[%emt 0:02:28]} Nbd7 {[%emt 0:00:15]} 9. Be2 {[%emt 0:01:47]} Bxc3+ {[%emt 0:03:27]} 10. bxc3 {[%emt 0:00:09]} Nxc5 {[%emt 0:00:03]} 11. Bxf6 {[%emt 0:06:13]} Qxf6 {[%emt 0:00:21]} 12. Qd4 {[%emt 0:00:42]} Ne4 {[%emt 0:01:29]} 13. c4 {[%emt 0:06:57]} Be6 {[%emt 0:06:24]} 14. Qxf6 {[%emt 0:02:33]} Nxf6 {[%emt 0:00:44]} 15. Nd4 {[%emt 0:00:23]} Rac8 {[%emt 0:09:05]} 16. cxd5 {[%emt 0:07:29]} Nxd5 {[%emt 0:02:08]} 17. Bf3 {[%emt 0:09:56]} Rc7 {[%emt 0:09:28]} 18. O-O {[%emt 0:00:58]} Nc3 {[%emt 0:02:34]} 19. a4 {[%emt 0:08:41]} a5 {[%emt 0:23:03]} 20. Ra3 {[%emt 0:11:43]} Rfc8 {[%emt 0:03:51]} 21. h3 {[%emt 0:01:48]} Bd7 {[%emt 0:06:03]} 22. Rfa1 {[%emt 0:01:22]} b6 {[%emt 0:04:22]} 23. Kh2 {[%emt 0:07:44]} g6 {[%emt 0:01:30]} 24. Bg4 {[%emt 0:03:09]} h5 {[%emt 0:07:46]} 25. Bxd7 {[%emt 0:00:14]} Rxd7 {[%emt 0:00:03]} 26. Rb3 {[%emt 0:01:40]} Nd5 {[%emt 0:00:24]} 27. Rb5 {[%emt 0:01:05]} Rd6 {[%emt 0:01:43]} 28. Rb2 {[%emt 0:06:06]} Nb4 {[%emt 0:00:36]} 29. g4 {[%emt 0:01:35]} Rd5 {[%emt 0:02:17]} 30. Kg2 {[%emt 0:00:33]} Rc4 {[%emt 0:03:54]} 31. Kg3 {[%emt 0:00:37]} hxg4 {[%emt 0:02:13]} 32. hxg4 {[%emt 0:00:03]} Rdc5 {[%emt 0:02:21]} 33. Rd2 {[%emt 0:04:00]} Rd5 {[%emt 0:00:12]} 34. Rb2 {[%emt 0:01:28]} Rdc5 {[%emt 0:00:04]} 35. Rd1 {[%emt 0:05:35]} Rc1 {[%emt 0:02:35]} 36. Rdd2 {[%emt 0:00:12]} Rg1+ {[%emt 0:01:01]} 37. Kf3 {[%emt 0:00:06]} Rg5 {[%emt 0:00:47]} 38. Ne2 {[%emt 0:00:41]} R1xg4 {[%emt 0:00:33]} 39. Rd6 {[%emt 0:02:50]} Rc4 {[%emt 0:01:05]} 40. Nd4 {[%emt 0:00:43]} Rgc5 {[%emt 0:03:54]} 41. Rxb6 {[%emt 0:31:05]} Nd5 {[%emt 0:05:10]} 42. Rb8+ {[%emt 0:00:00]} Kg7 {[%emt 0:00:08]} 43. R2b7 {[%emt 0:00:00]} Rc7 {[%emt 0:01:28]} 44. Rxc7 {[%emt 0:00:00]} Rxc7 {[%emt 0:00:08]} 45. Ra8 {[%emt 0:00:00]} Rc4 {[%emt 0:01:21]} 46. Rxa5 {[%emt 0:00:00]} Nc3 {[%emt 0:04:01]} 47. Ra7 {[%emt 0:00:00]} Rxa4 {[%emt 0:00:17]} 48. Rd7 {[%emt 0:00:00]} Ra6 {[%emt 0:00:24]} 49. Rc7 {[%emt 0:00:00]} Rf6+ {[%emt 0:00:46]} 50. Kg2 {[%emt 0:00:00]} Ne4 {[%emt 0:01:54]} 51. f3 {[%emt 0:00:00]} Ng5 {[%emt 0:00:09]} 52. Rc2 {[%emt 0:00:00]} Rb6 {[%emt 0:00:34]} 53. f4 {[%emt 0:00:00]} Ne6 {[%emt 0:00:38]} 54. Nf3 {[%emt 0:00:00]} Kf6 {[%emt 0:03:30]} 55. Rc4 {[%emt 0:00:00]} Rb2+ {[%emt 0:00:47]} 56. Kg3 {[%emt 0:00:01]} Ke7 {[%emt 0:05:46]} 57. Ne5 {[%emt 0:01:30]} Rb7 {[%emt 0:00:24]} 58. Kf3 {[%emt 0:00:15]} Rc7 {[%emt 0:00:33]} 59. Ra4 {[%emt 0:00:40]} Nc5 {[%emt 0:00:50]} 60. Ra1 {[%emt 0:00:55]} Nd7 {[%emt 0:00:28]} 61. Nd3 {[%emt 0:00:25]} Rb7 {[%emt 0:00:53]} 62. Ra4 {[%emt 0:00:38]} Kf6 {[%emt 0:01:57]} 63. Nf2 {[%emt 0:01:38]} Ke7 {[%emt 0:00:36]} 64. Ra6 {[%emt 0:01:20]} Nc5 {[%emt 0:01:22]} 65. Rc6 {[%emt 0:00:19]} Ne6 {[%emt 0:00:03]} 66. Ng4 {[%emt 0:01:15]} Rc7 {[%emt 0:01:32]} 67. Rb6 {[%emt 0:00:11]} Ra7 {[%emt 0:01:08]} 68. Ne5 {[%emt 0:00:07]} Rc7 {[%emt 0:00:03]} 69. Nc6+ {[%emt 0:00:10]} Kf8 {[%emt 0:01:27]} 70. Ke4 {[%emt 0:00:51]} Kg7 {[%emt 0:00:11]} 71. Ke5 {[%emt 0:00:48]} Rd7 {[%emt 0:00:05]} 72. Nb4 {[%emt 0:02:52]} Nc5 {[%emt 0:02:41]} 73. Nd5 {[%emt 0:00:13]} Rb7 {[%emt 0:00:37]} 74. Rc6 {[%emt 0:00:35]} Nd3+ {[%emt 0:00:26]} 75. Kd4 {[%emt 0:01:28]} Nb4 {[%emt 0:00:09]} 76. Rc4 {[%emt 0:01:20]} Nxd5 {[%emt 0:00:12]} 77. Kxd5 {[%emt 0:00:04]} Rd7+ {[%emt 0:00:23]} 78. Ke4 {[%emt 0:00:53]} Ra7 {[%emt 0:00:08]} 79. Kf3 {[%emt 0:00:14]} Ra3 {[%emt 0:00:05]} 80. Rc6 {[%emt 0:00:21]} Rb3 {[%emt 0:00:06]} 81. Rc5 {[%emt 0:00:34]} Kf6 {[%emt 0:00:11]} 82. Re5 {[%emt 0:00:18]} Ra3 {[%emt 0:00:19]} 83. Kg4 {[%emt 0:00:10]} Kg7 {[%emt 0:01:37]} 84. Re8 {[%emt 0:01:07]} Ra5 {[%emt 0:01:06]} 85. Rb8 {[%emt 0:00:45]} Ra4 {[%emt 0:00:20]} 86. Rb3 {[%emt 0:00:30]} Re4 {[%emt 0:00:23]} 87. Kf3 {[%emt 0:00:05]} f5 {[%emt 0:00:20]} 88. Rb6 {[%emt 0:00:15]} Kf7 {[%emt 0:00:07]} 89. Ke2 {[%emt 0:00:23]} Re7 {[%emt 0:00:20]} 90. Rd6 {[%emt 0:00:21]} Re6 {[%emt 0:04:16]} 91. Rd8 {[%emt 0:00:19]} Re7 {[%emt 0:00:18]} 92. Kf3 {[%emt 0:00:16]} Kg7 {[%emt 0:00:06]} 93. Rd3 {[%emt 0:00:17]} Kf6 {[%emt 0:00:05]} 94. Kg3 {[%emt 0:00:17]} Re4 {[%emt 0:01:12]} 95. Ra3 {[%emt 0:00:52]} Re7 {[%emt 0:00:10]} 96. Kh4 {[%emt 0:00:44]} Rh7+ {[%emt 0:00:02]} 97. Kg3 {[%emt 0:00:06]} Re7 {[%emt 0:00:01]} 98. Rb3 {[%emt 0:00:17]} Re4 {[%emt 0:00:06]} 99. Rb6+ {[%emt 0:01:29]} Re6 {[%emt 0:00:10]} 100. Rb3 {[%emt 0:00:17]} Re4 {[%emt 0:00:04]} 1/2-1/2

[Event "45th FIDE Womens Olympiad 2024"]
[Site "Budapest"]
[Date "2024.09.14"]
[Round "4.30"]
[White "Majid, Zara"]
[Black "Shih, Ching-An"]
[Result "1/2-1/2"]
[ECO "D02"]
[WhiteElo "1411"]
[BlackElo "1734"]
[PlyCount "114"]
[EventDate "2024.09.05"]
[EventType "team-tourn"]
[EventCountry "HUN"]
[WhiteTeam "Cayman Islands"]
[BlackTeam "Chinese Taipei"]
[WhiteTeamCountry "CAY"]
[BlackTeamCountry "TPE"]
[TimeControl "40/5400+30:1800+30"]

1. d4 d5 2. Bf4 Nf6 3. e3 Bf5 4. c4 c6 5. Nc3 e6 6. Nf3 Nbd7 7. Qb3 Qb6 8. c5 Qxb3 9. axb3 Nh5 10. Bg3 Nxg3 11. hxg3 Be7 12. b4 O-O 13. Kd2 Rfb8 14. Bd3 Bxd3 15. Kxd3 b6 16. Rhb1 f6 17. Nd2 a5 18. bxa5 bxc5 19. Ne2 c4+ 20. Kc2 Bb4 21. a6 Ra7 22. b3 Bxd2 23. Kxd2 cxb3 24. Kc3 Rb6 25. Rxb3 Raxa6 26. Rxb6 Rxb6 27. Ra8+ Kf7 28. Rc8 g5 29. g4 Ra6 30. Kb2 Nb6 31. Rc7+ Kg6 32. Re7 Nc4+ 33. Kb1 Rb6+ 34. Kc1 h6 35. Nc3 e5 36. dxe5 fxe5 37. Re6+ Kg7 38. Na4 Ra6 39. Nc3 d4 40. exd4 exd4 41. Ne4 d3 42. Re7+ Kf8 43. Rb7 Ra1+ 44. Rb1 Rxb1+ 45. Kxb1 Ke7 46. Kc1 Ne5 47. f3 Ke6 48. Kd2 Kd5 49. Kc3 c5 50. Nd2 c4 51. g3 Kc5 52. f4 gxf4 53. gxf4 Nxg4 54. Nxc4 Nf2 55. Ne5 h5 56. Nxd3+ Nxd3 57. Kxd3 Kd5 1/2-1/2

[Event "45th FIDE Womens Olympiad 2024"]
[Site "Budapest"]
[Date "2024.09.14"]
[Round "4.31"]
[White "Danielian, Elina"]
[Black "Luong Phuong Hanh"]
[Result "1-0"]
[ECO "A10"]
[WhiteElo "2393"]
[BlackElo "2225"]
[Annotator "ChessBase"]
[PlyCount "71"]
[EventDate "2024.09.05"]
[EventType "team-tourn"]
[EventCountry "HUN"]
[SourceTitle "playchess.com"]
[Source "ChessBase"]
[SourceQuality "1"]
[WhiteTeam "Armenia"]
[BlackTeam "Vietnam"]
[WhiteTeamCountry "ARM"]
[BlackTeamCountry "VIE"]
[TimeControl "40/5400+30:1800+30"]

1. Nf3 {[%emt 0:00:04]} f5 {[%emt 0:00:08]} 2. g3 {[%emt 0:01:22]} Nf6 {[%emt 0:00:10]} 3. Bg2 {[%emt 0:00:08]} g6 {[%emt 0:00:31]} 4. d3 {[%emt 0:03:49]} Bg7 {[%emt 0:00:40]} 5. O-O {[%emt 0:00:52]} d6 {[%emt 0:01:29]} 6. c4 {[%emt 0:01:41]} c6 {[%emt 0:05:46]} 7. Nc3 {[%emt 0:03:07]} O-O {[%emt 0:05:07]} 8. e4 {[%emt 0:01:00]} Na6 {[%emt 0:11:13]} 9. exf5 {[%emt 0:12:36]} Bxf5 {[%emt 0:00:18]} 10. Nh4 {[%emt 0:03:43]} Bg4 {[%emt 0:04:23]} 11. f3 {[%emt 0:00:24]} Bd7 {[%emt 0:00:23]} 12. d4 {[%emt 0:07:15]} Qb6 {[%emt 0:05:38]} 13. Kh1 {[%emt 0:09:19]} Nh5 {[%emt 0:07:19]} 14. Ne2 {[%emt 0:27:37]} c5 {[%emt 0:06:41]} 15. Be3 {[%emt 0:07:12]} cxd4 {[%emt 0:06:54]} 16. Nxd4 {[%emt 0:00:24]} Qxb2 {[%emt 0:00:41]} 17. f4 {[%emt 0:04:41]} Nc5 {[%emt 0:01:22]} 18. f5 {[%emt 0:02:33]} Ba4 {[%emt 0:01:27]} 19. Qg4 {[%emt 0:03:17]} Nf6 {[%emt 0:01:24]} 20. Qh3 {[%emt 0:07:49]} g5 {[%emt 0:02:53]} 21. Ng6 {[%emt 0:00:08]} hxg6 {[%emt 0:01:26]} 22. fxg6 {[%emt 0:00:02]} g4 {[%emt 0:10:18]} 23. Qh4 {[%emt 0:00:02]} e6 {[%emt 0:01:24]} 24. Rae1 {[%emt 0:02:30]} Qc3 {[%emt 0:05:40]} 25. Nf5 {[%emt 0:00:31]} exf5 {[%emt 0:08:03]} 26. Bd5+ {[%emt 0:00:02]} Rf7 {[%emt 0:00:06]} 27. gxf7+ {[%emt 0:01:07]} Kf8 {[%emt 0:00:02]} 28. Qg5 {[%emt 0:00:41]} Bc2 {[%emt 0:05:27]} 29. Qf4 {[%emt 0:00:32]} Nce4 {[%emt 0:00:27]} 30. Rc1 {[%emt 0:00:20]} Nh5 {[%emt 0:00:47]} 31. Rxc2 {[%emt 0:00:02]} Nxf4 {[%emt 0:00:43]} 32. Rxc3 {[%emt 0:00:08]} Nxd5 {[%emt 0:00:09]} 33. Rb3 {[%emt 0:00:11]} Nxe3 {[%emt 0:04:38]} 34. Rxe3 {[%emt 0:00:02]} Rc8 {[%emt 0:01:39]} 35. Rxf5 {[%emt 0:00:03]} Rxc4 {[%emt 0:00:08]} 36. Rf1 {[%emt 0:00:02]} 1-0

[Event "45th FIDE Womens Olympiad 2024"]
[Site "Budapest"]
[Date "2024.09.14"]
[Round "4.31"]
[White "Chen, I-Chen"]
[Black "Patil, Anvita Niranjan"]
[Result "0-1"]
[ECO "C45"]
[WhiteElo "1771"]
[BlackElo "1589"]
[PlyCount "94"]
[EventDate "2024.09.05"]
[EventType "team-tourn"]
[EventCountry "HUN"]
[WhiteTeam "Chinese Taipei"]
[BlackTeam "Cayman Islands"]
[WhiteTeamCountry "TPE"]
[BlackTeamCountry "CAY"]
[TimeControl "40/5400+30:1800+30"]

1. e4 e5 2. Nf3 Nc6 3. d4 exd4 4. Nxd4 Bc5 5. Be3 Bb6 6. Qd2 d6 7. Nc3 Nf6 8. O-O-O Bd7 9. f3 Qe7 10. Nd5 Nxd5 11. exd5 Ne5 12. Re1 O-O 13. h3 h6 14. f4 Ng6 15. Nf5 Qf6 16. g4 Bxe3 17. Nxe3 Qxf4 18. Bg2 Nh4 19. Rhf1 Qg5 20. Be4 Rae8 21. Qd3 f5 22. gxf5 Bxf5 23. Bxf5 Nxf5 24. Kd2 Rxe3 25. Rxe3 Nxe3 26. Rxf8+ Kxf8 27. Qxe3 Qxe3+ 28. Kxe3 Kf7 29. Kf4 Kf6 30. h4 g5+ 31. hxg5+ hxg5+ 32. Kg4 Ke5 33. Kxg5 Kxd5 34. Kf4 c5 35. Ke3 b5 36. Kd3 c4+ 37. Kc3 a5 38. a3 Kc5 39. b4+ axb4+ 40. axb4+ Kd5 41. Kd2 Kd4 42. c3+ Ke4 43. Ke2 d5 44. Kd2 d4 45. cxd4 Kxd4 46. Kc2 c3 47. Kc1 Kc4 {0-} 0-1

[Event "45th FIDE Womens Olympiad 2024"]
[Site "Budapest"]
[Date "2024.09.14"]
[Round "4.32"]
[White "Le Thanh Tu"]
[Black "Sargsyan, Anna M."]
[Result "0-1"]
[ECO "E11"]
[WhiteElo "2092"]
[BlackElo "2364"]
[Annotator "ChessBase"]
[PlyCount "110"]
[EventDate "2024.09.05"]
[EventType "team-tourn"]
[EventCountry "HUN"]
[SourceTitle "playchess.com"]
[Source "ChessBase"]
[SourceQuality "1"]
[WhiteTeam "Vietnam"]
[BlackTeam "Armenia"]
[WhiteTeamCountry "VIE"]
[BlackTeamCountry "ARM"]
[TimeControl "40/5400+30:1800+30"]

1. d4 {[%emt 0:00:04]} Nf6 {[%emt 0:00:08]} 2. c4 {[%emt 0:00:19]} e6 {[%emt 0:00:06]} 3. g3 {[%emt 0:00:23]} d5 {[%emt 0:00:04]} 4. Nf3 {[%emt 0:00:15]} Bb4+ {[%emt 0:00:05]} 5. Bd2 {[%emt 0:00:13]} a5 {[%emt 0:00:13]} 6. Bg2 {[%emt 0:00:25]} O-O {[%emt 0:00:09]} 7. O-O {[%emt 0:00:43]} dxc4 {[%emt 0:00:04]} 8. Qc2 {[%emt 0:02:38]} Bxd2 {[%emt 0:00:05]} 9. Nbxd2 {[%emt 0:02:29]} b5 {[%emt 0:00:07]} 10. a4 {[%emt 0:03:00]} c6 {[%emt 0:03:21]} 11. e4 {[%emt 0:05:35]} Na6 {[%emt 0:01:13]} 12. e5 {[%emt 0:01:39]} Nb4 {[%emt 0:04:31]} 13. Qd1 {[%emt 0:01:04]} Nfd5 {[%emt 0:00:13]} 14. Ne4 {[%emt 0:00:52]} h6 {[%emt 0:00:37]} 15. Qe2 {[%emt 0:05:11]} bxa4 {[%emt 0:01:13]} 16. Rfb1 {[%emt 0:13:52]} Ba6 {[%emt 0:01:48]} 17. Qd1 {[%emt 0:00:33]} Bb5 {[%emt 0:02:44]} 18. Bf1 {[%emt 0:04:31]} Rb8 {[%emt 0:02:48]} 19. Ra3 {[%emt 0:02:32]} Nd3 {[%emt 0:12:08]} 20. Nd6 {[%emt 0:02:26]} Qb6 {[%emt 0:09:58]} 21. Nxc4 {[%emt 0:05:19]} Bxc4 {[%emt 0:00:05]} 22. Bxd3 {[%emt 0:00:13]} Bb3 {[%emt 0:00:18]} 23. Qe2 {[%emt 0:07:21]} Nb4 {[%emt 0:02:19]} 24. Raa1 {[%emt 0:02:53]} Rfd8 {[%emt 0:01:37]} 25. Be4 {[%emt 0:03:30]} Qb5 {[%emt 0:00:43]} 26. Re1 {[%emt 0:03:09]} Bc4 {[%emt 0:01:47]} 27. Qe3 {[%emt 0:01:33]} Bd5 {[%emt 0:08:20]} 28. Bb1 {[%emt 0:07:39]} Bxf3 {[%emt 0:01:06]} 29. Qxf3 {[%emt 0:00:18]} Rxd4 {[%emt 0:00:19]} 30. Qc3 {[%emt 0:04:51]} c5 {[%emt 0:04:12]} 31. Bc2 {[%emt 0:03:38]} Nxc2 {[%emt 0:05:46]} 32. Qxc2 {[%emt 0:00:07]} Rc4 {[%emt 0:00:58]} 33. Qd2 {[%emt 0:02:08]} Qb4 {[%emt 0:01:46]} 34. Qd7 {[%emt 0:02:40]} Rd4 {[%emt 0:00:25]} 35. Qc6 {[%emt 0:00:36]} Qb5 {[%emt 0:00:23]} 36. Qxb5 {[%emt 0:01:03]} Rxb5 {[%emt 0:00:22]} 37. Re2 {[%emt 0:00:13]} Rdb4 {[%emt 0:00:08]} 38. Ra2 {[%emt 0:00:33]} g5 {[%emt 0:00:33]} 39. h3 {[%emt 0:00:46]} h5 {[%emt 0:00:22]} 40. f3 {[%emt 0:01:10]} Kg7 {[%emt 0:00:30]} 41. Kf2 {[%emt 0:31:24]} Rd4 {[%emt 0:32:28]} 42. Kg2 {[%emt 0:00:53]} Rb3 {[%emt 0:00:15]} 43. Ra1 {[%emt 0:03:31]} Rdd3 {[%emt 0:02:44]} 44. Rf2 {[%emt 0:00:53]} g4 {[%emt 0:00:38]} 45. hxg4 {[%emt 0:00:11]} hxg4 {[%emt 0:00:02]} 46. Rxa4 {[%emt 0:01:22]} gxf3+ {[%emt 0:00:08]} 47. Kh3 {[%emt 0:02:29]} Re3 {[%emt 0:06:18]} 48. Rxa5 {[%emt 0:01:48]} Rxe5 {[%emt 0:00:15]} 49. g4 {[%emt 0:00:00]} f5 {[%emt 0:00:00]} 50. gxf5 {[%emt 0:00:00]} Rxf5 {[%emt 0:00:00]} 51. Kg3 {[%emt 0:00:00]} Kf6 {[%emt 0:00:00]} 52. Kh2 {[%emt 0:00:00]} Rb8 {[%emt 0:00:00]} 53. Kg1 {[%emt 0:00:00]} Rh8 {[%emt 0:00:00]} 54. Rf1 {[%emt 0:00:00]} Rg8+ {[%emt 0:00:00]} 55. Kf2 {[%emt 0:00:00]} Rg2+ {[%emt 0:00:00]} 0-1

[Event "45th FIDE Womens Olympiad 2024"]
[Site "Budapest"]
[Date "2024.09.14"]
[Round "4.33"]
[White "Khamdamova, Afruza"]
[Black "Stefanova, Antoaneta"]
[Result "1-0"]
[ECO "C70"]
[WhiteElo "2313"]
[BlackElo "2416"]
[Annotator "ChessBase"]
[PlyCount "125"]
[EventDate "2024.09.05"]
[EventType "team-tourn"]
[EventCountry "HUN"]
[SourceTitle "playchess.com"]
[Source "ChessBase"]
[SourceQuality "1"]
[WhiteTeam "Uzbekistan"]
[BlackTeam "Bulgaria"]
[WhiteTeamCountry "UZB"]
[BlackTeamCountry "BUL"]
[TimeControl "40/5400+30:1800+30"]

1. e4 e5 2. Nf3 Nc6 3. Bb5 a6 4. Ba4 Nge7 5. c3 Ng6 6. d4 exd4 7. cxd4 Bb4+ 8. Nc3 d5 9. exd5 Bxc3+ 10. bxc3 Qxd5 11. Qe2+ Qe6 12. Be3 O-O 13. O-O Nf4 14. Qd1 Qg4 15. Bxf4 Qxf4 16. Bxc6 bxc6 17. Ne5 Qf6 18. Re1 Rb8 19. Qd2 Bf5 20. Qf4 Rb2 21. Nc4 Rb7 22. Na5 Rb2 23. Nc4 Rb7 24. h3 Be6 25. Qxf6 gxf6 26. Na5 Rb6 27. Re3 Rd8 28. Nb3 Bxb3 29. axb3 Rxb3 30. Rxa6 Rb6 31. Ra7 Rc8 32. Kh2 Kf8 33. Rf3 Kg7 34. Rf4 Rbb8 35. Kg3 Ra8 36. Rxa8 Rxa8 37. Rf5 Re8 38. Rc5 Re6 39. f4 f5 40. Kf3 Rf6 41. c4 Kf8 42. Re5 Rd6 43. Rxf5 Rxd4 44. Rc5 Rd6 45. Ke3 Ke7 46. Rh5 h6 47. g4 Kf8 48. c5 Re6+ 49. Re5 Rg6 50. f5 Rg8 51. Kf4 h5 52. f6 hxg4 53. hxg4 Rh8 54. Re7 Rh1 55. Rxc7 Kg8 56. Rxc6 Kh7 57. Kg5 Rd1 58. Rd6 Rc1 59. Rd5 Rc2 60. Kf5 Rc4 61. g5 Rc1 62. Ke5 Kg6 63. Kd6 1-0

[Event "45th FIDE Womens Olympiad 2024"]
[Site "Budapest"]
[Date "2024.09.14"]
[Round "4.34"]
[White "Salimova, Nurgyul"]
[Black "Omonova, Umida"]
[Result "1/2-1/2"]
[ECO "D02"]
[WhiteElo "2412"]
[BlackElo "2032"]
[Annotator "ChessBase"]
[PlyCount "120"]
[EventDate "2024.09.05"]
[EventType "team-tourn"]
[EventCountry "HUN"]
[SourceTitle "playchess.com"]
[Source "ChessBase"]
[SourceQuality "1"]
[WhiteTeam "Bulgaria"]
[BlackTeam "Uzbekistan"]
[WhiteTeamCountry "BUL"]
[BlackTeamCountry "UZB"]
[TimeControl "40/5400+30:1800+30"]

1. d4 d5 2. Nf3 Nf6 3. Bf4 c5 4. e3 Nc6 5. Nbd2 e6 6. c3 cxd4 7. exd4 Nh5 8. Be3 Bd6 9. Ne5 Nf6 10. Nd3 O-O 11. Be2 Re8 12. Qc2 Qc7 13. f4 Ne7 14. Ne5 b6 15. Bf3 Bb7 16. Bf2 Nd7 17. O-O-O f6 18. Nd3 Bxf4 19. Nxf4 Qxf4 20. Rde1 e5 21. Be3 Qf5 22. Qd1 Qe6 23. dxe5 fxe5 24. Bg4 Qc6 25. Nf3 Ng6 26. h4 Nf6 27. Bf5 Bc8 28. Bc2 Bg4 29. Bg5 d4 30. h5 Nxh5 31. Be4 Qc5 32. Qb3+ Be6 33. Qc2 Ng3 34. Bxg6 hxg6 35. Rxe5 Qd6 36. Rhe1 d3 37. Qd2 Qd7 38. Nd4 Bc4 39. b3 Ba6 40. Bf4 Nh5 41. Bg5 Rxe5 42. Rxe5 Qg4 43. Nf3 Rf8 44. Be7 Re8 45. Qg5 Qf4+ 46. Qxf4 Nxf4 47. Bg5 Ne6 48. Nd4 Kf7 49. Nxe6 Rxe6 50. Rxe6 Kxe6 51. g3 Kf5 52. Bf4 Bb7 53. Kd2 Ke4 54. c4 a6 55. a4 b5 56. cxb5 axb5 57. axb5 Kd5 58. Be3 Bc8 59. Kxd3 Bd7 60. b6 Ke5 1/2-1/2

[Event "45th FIDE Womens Olympiad 2024"]
[Site "Budapest"]
[Date "2024.09.14"]
[Round "4.35"]
[White "Malikova, Marjona"]
[Black "Radeva, Viktoria"]
[Result "1/2-1/2"]
[ECO "E32"]
[WhiteElo "2083"]
[BlackElo "2297"]
[Annotator "ChessBase"]
[PlyCount "75"]
[EventDate "2024.09.05"]
[EventType "team-tourn"]
[EventCountry "HUN"]
[SourceTitle "playchess.com"]
[Source "ChessBase"]
[SourceQuality "1"]
[WhiteTeam "Uzbekistan"]
[BlackTeam "Bulgaria"]
[WhiteTeamCountry "UZB"]
[BlackTeamCountry "BUL"]
[TimeControl "40/5400+30:1800+30"]

1. d4 Nf6 2. c4 e6 3. Nc3 Bb4 4. Qc2 d6 5. Nf3 Nbd7 6. g3 e5 7. dxe5 dxe5 8. Bg2 O-O 9. O-O c6 10. a3 Be7 11. b3 Re8 12. Bb2 Qc7 13. Rfd1 Bf8 14. Nd2 a5 15. Rac1 Nc5 16. h3 Bd7 17. e3 Rad8 18. b4 axb4 19. axb4 Na6 20. b5 Nc5 21. Nb3 Nxb3 22. Qxb3 Be6 23. bxc6 bxc6 24. Qa4 Rxd1+ 25. Rxd1 Rb8 26. Rd2 Bd7 27. Ba3 Bxa3 28. Qxa3 Qc8 29. Qd6 Ra8 30. Kh2 Qe8 31. Qc7 Rc8 32. Qd6 Ra8 33. Ne4 Nxe4 34. Bxe4 Ra7 35. Rb2 Ra8 36. Rd2 Ra7 37. Rb2 Ra8 38. Rd2 1/2-1/2

[Event "45th FIDE Womens Olympiad 2024"]
[Site "Budapest"]
[Date "2024.09.14"]
[Round "4.36"]
[White "Peycheva, Gergana"]
[Black "Nadirjanova, Nodira"]
[Result "1/2-1/2"]
[ECO "D10"]
[WhiteElo "2248"]
[BlackElo "2059"]
[Annotator "ChessBase"]
[PlyCount "130"]
[EventDate "2024.09.05"]
[EventType "team-tourn"]
[EventCountry "HUN"]
[SourceTitle "playchess.com"]
[Source "ChessBase"]
[SourceQuality "1"]
[WhiteTeam "Bulgaria"]
[BlackTeam "Uzbekistan"]
[WhiteTeamCountry "BUL"]
[BlackTeamCountry "UZB"]
[TimeControl "40/5400+30:1800+30"]

1. d4 d5 2. c4 c6 3. Nc3 Nf6 4. e3 Bf5 5. f3 h5 6. Bd3 Bxd3 7. Qxd3 Nbd7 8. cxd5 cxd5 9. e4 e6 10. Nge2 Nb6 11. O-O Be7 12. Bf4 O-O 13. Rac1 a6 14. Rc2 Qd7 15. Bg5 Rfc8 16. e5 Ne8 17. Bxe7 Qxe7 18. Rfc1 Rc7 19. Nf4 h4 20. g3 Rac8 21. Ng2 hxg3 22. hxg3 Nc4 23. Nf4 Qg5 24. Kf2 g6 25. Nd1 Qe7 26. b3 Na3 27. Rxc7 Rxc7 28. Rxc7 Nxc7 29. Ne3 Ncb5 30. Ng4 Qb4 31. Ne2 Kf8 32. Ne3 Na7 33. Nc2 Nxc2 34. Qxc2 Nc6 35. Ke3 Kg7 36. Qc1 a5 37. Qc3 Qa3 38. Nc1 Nb4 39. Qd2 a4 40. Ke2 Nc6 41. bxa4 Nxd4+ 42. Qxd4 Qxc1 43. g4 Qc2+ 44. Ke3 Qxa2 45. Qf4 Kg8 46. Kd3 Qb2 47. Qf6 Qb3+ 48. Ke2 Qc4+ 49. Kf2 Qc7 50. Ke3 Kf8 51. Kf2 Ke8 52. Kg2 Qe7 53. Qh8+ Qf8 54. Qh1 Qb4 55. Qh8+ Qf8 56. Qh1 g5 57. Qc1 Qb4 58. Qc8+ Ke7 59. Qc7+ Ke8 60. Qc8+ Ke7 61. Qc7+ Kf8 62. Qd8+ Kg7 63. Qxg5+ Kf8 64. Qd8+ Kg7 65. Qf6+ Kf8 1/2-1/2

[Event "45th FIDE Womens Olympiad 2024"]
[Site "Budapest"]
[Date "2024.09.14"]
[Round "4.37"]
[White "Dzagnidze, Nana"]
[Black "Tsolakidou, Stavroula"]
[Result "1/2-1/2"]
[ECO "E67"]
[WhiteElo "2508"]
[BlackElo "2444"]
[Annotator "ChessBase"]
[PlyCount "93"]
[EventDate "2024.09.05"]
[EventType "team-tourn"]
[EventCountry "HUN"]
[SourceTitle "playchess.com"]
[Source "ChessBase"]
[SourceQuality "1"]
[WhiteTeam "Georgia"]
[BlackTeam "Greece"]
[WhiteTeamCountry "GEO"]
[BlackTeamCountry "GRE"]
[TimeControl "40/5400+30:1800+30"]

1. d4 Nf6 2. c4 g6 3. Nc3 Bg7 4. Nf3 O-O 5. g3 d6 6. Bg2 Nbd7 7. O-O e5 8. h3 Re8 9. e4 b6 10. Be3 exd4 11. Nxd4 Bb7 12. f3 c6 13. Bf2 a6 14. a4 a5 15. f4 Qc7 16. Qc2 Nc5 17. Rad1 Rad8 18. g4 Nfd7 19. g5 Na6 20. h4 Nb4 21. Qb1 Ba6 22. b3 d5 23. exd5 Qxf4 24. dxc6 Nc5 25. Nde2 Qg4 26. Rxd8 Rxd8 27. Bxc5 bxc5 28. Qe4 Qxe4 29. Nxe4 Nxc6 30. Nf6+ Bxf6 31. Rxf6 Nb4 32. Nc3 Bc8 33. Ne4 Nd3 34. Rd6 Rxd6 35. Nxd6 Bg4 36. Nb7 Bd1 37. Nxa5 Nc1 38. Nb7 Bxb3 39. a5 Bxc4 40. Nxc5 Ne2+ 41. Kf2 Nd4 42. a6 Bxa6 43. Nxa6 Nf5 44. Nc7 Nxh4 45. Bd5 Nf5 46. Ne8 h6 47. gxh6 1/2-1/2